bitfinex-derivatives/quotes_BTCF0:USTF0_20241109
["timestamp","ask_amount","ask_price","bid_price","bid_amount"]
[1731174126982,0.2335401,76126.0,76125.0,0.06761512]
[1731174128389,0.19656445,76126.0,76125.0,0.06761512]
[1731174128888,0.10604,76128.0,76125.0,0.00197012]
[1731174128889,0.19702253,76127.0,76125.0,0.00197012]
[1731174129080,0.19702253,76127.0,76126.0,0.065644]
[1731174129281,0.10604,76128.0,76127.0,0.065643]
[1731174129682,0.30253648,76128.0,76127.0,0.065643]
[1731174130587,0.19649648,76128.0,76127.0,0.065643]
[1731174130886,0.10596,76128.0,76127.0,0.065643]
[1731174131193,0.30208199,76128.0,76127.0,0.065643]
[1731174132791,0.30208199,76128.0,76127.0,0.104957]
[1731174133689,0.30208199,76128.0,76127.0,0.065643]
[1731174133886,0.30208199,76128.0,76127.0,0.104957]
[1731174134084,0.30208199,76128.0,76127.0,0.065643]
[1731174134289,0.19612199,76128.0,76127.0,0.065643]
[1731174134687,0.30385813,76129.0,76128.0,0.065642]
[1731174134999,0.3608,76130.0,76129.0,0.065641]
[1731174135586,0.10596,76133.0,76129.0,0.065641]
[1731174135587,0.10596,76133.0,76132.0,0.065639]
[1731174135991,0.30257127,76133.0,76132.0,0.065639]
[1731174140188,0.21530928,76133.0,76132.0,0.065639]
[1731174141391,0.19661127,76133.0,76132.0,0.065639]
[1731174141796,0.10596,76135.0,76131.0,0.11433031]
[1731174141797,0.19775869,76134.0,76131.0,0.11433031]
[1731174141997,0.10596,76135.0,76134.0,0.065637]
[1731174142303,0.30371869,76135.0,76134.0,0.065637]
[1731174144707,0.32254688,76135.0,76134.0,0.065637]
[1731174146001,0.43687719,76135.0,76123.0,0.0309]
[1731174146199,0.065642,76129.0,76128.0,0.065642]
[1731174146407,0.44527019,76129.0,76128.0,0.065642]
[1731174146713,0.065645,76125.0,76123.0,0.0309]
[1731174147005,0.065645,76125.0,76122.0,0.0316]
[1731174147807,0.065645,76125.0,76124.0,0.065646]
[1731174150818,0.065647,76123.0,76122.0,0.0316]
[1731174151105,0.26399498,76123.0,76122.0,0.0316]
[1731174152397,0.28454894,76123.0,76122.0,0.0316]
[1731174152602,0.26399498,76123.0,76122.0,0.0316]
[1731174152909,0.19834798,76123.0,76121.0,0.065648]
[1731174153109,0.065652,76117.0,76114.0,0.03936483]
[1731174153410,0.2632553,76116.0,76113.0,0.39188]
[1731174153601,0.2632553,76116.0,76114.0,0.10501783]
[1731174153812,0.065653,76116.0,76114.0,0.10501783]
[1731174154114,0.1976023,76115.0,76114.0,0.10501783]
[1731174154317,0.21843289,76115.0,76114.0,0.10501783]
[1731174154522,0.1976023,76115.0,76114.0,0.10501783]
[1731174154719,0.065654,76114.0,76113.0,0.00072]
[1731174154924,0.08648449,76114.0,76111.0,0.00197074]
[1731174155121,0.08648449,76114.0,76112.0,0.065656]
[1731174155122,0.02083049,76113.0,76112.0,0.065656]
[1731174155424,0.21917835,76113.0,76112.0,0.065656]
[1731174156124,0.065656,76112.0,76111.0,0.00197074]
[1731174156330,0.08648649,76112.0,76111.0,0.00197074]
[1731174156619,0.28441635,76112.0,76111.0,0.00197074]
[1731174156821,0.26358586,76112.0,76111.0,0.00197074]
[1731174157321,0.26358586,76112.0,76109.0,0.065658]
[1731174157915,0.02141591,76111.0,76109.0,0.065658]
[1731174158115,0.02141591,76110.0,76109.0,0.065658]
[1731174158316,0.21803994,76110.0,76109.0,0.065658]
[1731174159420,0.28369794,76110.0,76109.0,0.065658]
[1731174159627,0.33237025,76110.0,76107.0,0.0312]
[1731174159827,0.33237025,76110.0,76104.0,0.0325]
[1731174159828,0.065661,76107.0,76104.0,0.098163]
[1731174160026,0.02157354,76106.0,76104.0,0.098163]
[1731174160227,0.02157354,76105.0,76104.0,0.098163]
[1731174160726,0.21775756,76105.0,76104.0,0.098163]
[1731174160925,0.21775756,76105.0,76104.0,0.0325]
[1731174160926,0.28341956,76105.0,76104.0,0.0325]
[1731174161719,0.26184602,76105.0,76104.0,0.0325]
[1731174162615,0.36776602,76105.0,76104.0,0.0325]
[1731174162814,0.19618402,76105.0,76104.0,0.0325]
[1731174163019,0.10592,76118.0,76113.0,0.065654]
[1731174163225,0.10592,76118.0,76116.0,0.065652]
[1731174163725,0.19668633,76117.0,76116.0,0.065652]
[1731174163925,0.72905833,76117.0,76114.0,0.0311]
[1731174164128,0.065653,76116.0,76114.0,0.0311]
[1731174164331,0.26233933,76116.0,76114.0,0.0311]
[1731174164533,0.26233933,76116.0,76104.0,0.3933]
[1731174164534,0.19668633,76116.0,76104.0,0.3933]
[1731174164829,0.065655,76113.0,76107.0,0.06566]
[1731174165229,0.19703098,76112.0,76107.0,0.06566]
[1731174165429,0.19703098,76112.0,76108.0,0.065659]
[1731174165616,0.19703098,76112.0,76109.0,0.065658]
[1731174165816,0.19703098,76112.0,76104.0,0.39398]
[1731174166020,0.19703098,76112.0,76110.0,0.065657]
[1731174166231,0.19669712,76114.0,76113.0,0.065655]
[1731174166527,0.46812001,76117.0,76115.0,0.065653]
[1731174166731,0.46672,76117.0,76115.0,0.065653]
[1731174166934,0.19680857,76116.0,76115.0,0.065653]
[1731174169727,0.21909088,76116.0,76115.0,0.065653]
[1731174171029,0.19680857,76116.0,76115.0,0.065653]
[1731174181929,0.21656785,76116.0,76115.0,0.065653]
[1731174183939,0.065656,76112.0,76111.0,0.065657]
[1731174184134,0.15884175,76112.0,76111.0,0.065657]
[1731174184437,0.35681516,76112.0,76111.0,0.065657]
[1731174185830,0.065658,76110.0,76106.0,0.03936483]
[1731174186044,0.07342647,76108.0,76106.0,0.10502483]
[1731174186342,0.19798502,76107.0,76106.0,0.10502483]
[1731174186638,0.19798502,76107.0,76106.0,0.06566]
[1731174186835,0.19798502,76107.0,76106.0,0.10503362]
[1731174187032,0.19798502,76107.0,76106.0,0.06566]
[1731174187634,0.19798502,76107.0,76106.0,0.10503385]
[1731174188644,0.22023038,76107.0,76106.0,0.10503385]
[1731174189045,0.02224536,76107.0,76106.0,0.10503385]
[1731174189340,0.21999721,76107.0,76106.0,0.10503385]
[1731174190547,0.21999721,76107.0,76106.0,0.10503464]
[1731174190843,0.21999721,76107.0,76106.0,0.06566]
[1731174191447,0.21999721,76107.0,76106.0,0.10503698]
[1731174191632,0.21999721,76107.0,76106.0,0.06566]
[1731174191943,0.21999721,76107.0,76106.0,0.13908647]
[1731174192151,0.21999721,76107.0,76106.0,0.19149902]
[1731174192446,0.21999721,76107.0,76106.0,0.13908647]
[1731174192646,0.21999721,76107.0,76106.0,0.55238771]
[1731174192841,0.21999721,76107.0,76106.0,0.49988647]
[1731174193239,0.21999721,76107.0,76106.0,0.55239621]
[1731174193646,0.21999721,76107.0,76106.0,0.13908647]
[1731174196336,0.19775185,76107.0,76106.0,0.06566]
[1731174196645,0.06566,76108.0,76106.0,0.06566]
[1731174196850,0.19839809,76111.0,76106.0,0.06566]
[1731174196851,0.05784942,76107.0,76106.0,0.06566]
[1731174197056,0.25624751,76107.0,76106.0,0.06566]
[1731174197241,0.05784942,76107.0,76106.0,0.06566]
[1731174197546,0.25624751,76107.0,76106.0,0.06566]
[1731174198355,0.22035846,76107.0,76106.0,0.06566]
[1731174200044,0.19839809,76107.0,76106.0,0.06566]
[1731174201454,0.23404495,76107.0,76106.0,0.06566]
[1731174202558,0.19839809,76107.0,76106.0,0.1050449]
[1731174205244,0.19839809,76107.0,76106.0,0.0393849]
[1731174205440,0.065663,76104.0,76103.0,0.03939448]
[1731174205657,0.13908947,76104.0,76103.0,0.03939448]
[1731174205959,0.13908947,76104.0,76102.0,0.03939448]
[1731174205960,0.065664,76103.0,76102.0,0.03939448]
[1731174206250,0.065664,76103.0,76096.0,0.05250969]
[1731174206251,0.68320412,76103.0,76096.0,0.05250969]
[1731174206458,0.68320412,76103.0,76090.0,0.06764625]
[1731174206459,0.065673,76092.0,76091.0,0.03937929]
[1731174206647,0.065674,76091.0,76090.0,0.00197125]
[1731174206849,0.15952997,76091.0,76090.0,0.00197125]
[1731174207159,0.35553661,76091.0,76090.0,0.00197125]
[1731174207354,0.28133879,76091.0,76090.0,0.00197125]
[1731174207542,0.28133879,76091.0,76085.0,0.065679]
[1731174207543,0.21566479,76091.0,76085.0,0.065679]
[1731174207746,0.19600664,76091.0,76085.0,0.10505829]
[1731174207945,0.065678,76086.0,76085.0,0.10505829]
[1731174208157,0.065678,76086.0,76085.0,0.065679]
[1731174208355,0.26192695,76086.0,76085.0,0.065679]
[1731174210050,0.19624895,76086.0,76085.0,0.065679]
[1731174221765,0.19766126,76088.0,76083.0,0.0307]
[1731174221955,0.3608,76089.0,76088.0,0.065677]
[1731174222262,0.55846126,76089.0,76088.0,0.065677]
[1731174229055,0.21771599,76089.0,76088.0,0.065677]
[1731174229259,0.57851599,76089.0,76088.0,0.065677]
[1731174230076,0.55846126,76089.0,76088.0,0.065677]
[1731174230367,0.19766126,76089.0,76088.0,0.065677]
[1731174230761,0.00140001,76098.0,76088.0,0.82854958]
[1731174230959,0.171415,76114.0,76097.0,0.13913858]
[1731174231162,0.01920134,76107.0,76105.0,0.065662]
[1731174231367,0.01920134,76106.0,76105.0,0.065662]
[1731174231873,0.21555336,76106.0,76105.0,0.065662]
[1731174233365,0.19635202,76106.0,76105.0,0.065662]
[1731174233575,0.19635202,76106.0,76105.0,0.10496917]
[1731174233779,0.19705324,76107.0,76106.0,0.065661]
[1731174233970,0.41246119,76108.0,76105.0,0.03930717]
[1731174234165,0.10576,76114.0,76108.0,0.065659]
[1731174234375,0.10576,76114.0,76113.0,0.065655]
[1731174234670,0.19715244,76114.0,76108.0,0.0393086]
[1731174234866,0.19715244,76114.0,76113.0,0.065655]
[1731174235069,0.10572,76117.0,76116.0,0.065653]
[1731174235272,0.12468181,76117.0,76116.0,0.065653]
[1731174235470,0.32183425,76117.0,76116.0,0.065653]
[1731174235978,0.21611425,76117.0,76116.0,0.065653]
[1731174236378,0.24675315,76117.0,76116.0,0.065653]
[1731174237073,0.19715244,76117.0,76116.0,0.065653]
[1731174237477,0.0313,76119.0,76117.0,0.065652]
[1731174237478,0.19749623,76118.0,76117.0,0.065652]
[1731174237777,0.19749623,76117.0,76116.0,0.065653]
[1731174238073,0.19795311,76118.0,76117.0,0.065652]
[1731174238272,0.19795311,76117.0,76116.0,0.065653]
[1731174238477,0.19795311,76118.0,76117.0,0.065652]
[1731174238674,0.0313,76119.0,76114.0,0.07346958]
[1731174238878,0.0313,76119.0,76118.0,0.065651]
[1731174239080,0.04969029,76120.0,76119.0,0.06565]
[1731174239275,0.10572,76122.0,76114.0,0.07346958]
[1731174239476,0.10572,76122.0,76121.0,0.065648]
[1731174239770,0.30338851,76122.0,76121.0,0.065648]
[1731174242173,0.35314142,76122.0,76121.0,0.065648]
[1731174243875,0.426611,76122.0,76121.0,0.065648]
[1731174244275,0.320891,76122.0,76121.0,0.065648]
[1731174244475,0.24742142,76122.0,76121.0,0.065648]
[1731174247183,0.320891,76122.0,76121.0,0.065648]
[1731174250486,0.24742142,76122.0,76121.0,0.065648]
[1731174250676,0.26779876,76122.0,76121.0,0.065648]
[1731174252374,0.24742142,76122.0,76121.0,0.065648]
[1731174260387,0.26716463,76122.0,76121.0,0.065648]
[1731174261579,0.26716463,76122.0,76115.0,0.065653]
[1731174261580,0.3033684,76122.0,76115.0,0.065653]
[1731174261782,0.065654,76115.0,76107.0,0.0393086]
[1731174261982,0.07346958,76110.0,76105.0,0.40207944]
[1731174262285,0.26166465,76114.0,76109.0,0.065659]
[1731174262477,0.26166465,76114.0,76105.0,0.40207944]
[1731174262478,0.06566,76107.0,76105.0,0.00265084]
[1731174262678,0.07346958,76110.0,76105.0,0.00197084]
[1731174262679,0.45433957,76106.0,76105.0,0.00197084]
[1731174262878,0.74946007,76106.0,76105.0,0.00197084]
[1731174263084,0.48573957,76106.0,76096.0,0.3608]
[1731174263286,0.065666,76100.0,76096.0,0.3608]
[1731174263484,0.11443899,76102.0,76096.0,0.3608]
[1731174263485,0.15332336,76099.0,76096.0,0.3608]
[1731174263787,0.05535536,76098.0,76096.0,0.3608]
[1731174263987,0.05535536,76097.0,76096.0,0.3608]
[1731174264187,0.25289891,76097.0,76096.0,0.3608]
[1731174264385,0.05535536,76097.0,76096.0,0.3608]
[1731174264786,0.25289891,76097.0,76096.0,0.3608]
[1731174264985,0.25289891,76097.0,76096.0,0.06567]
[1731174265487,0.21761354,76097.0,76096.0,0.06567]
[1731174267390,0.19754355,76097.0,76096.0,0.06567]
[1731174267694,0.19714663,76098.0,76089.0,0.11443899]
[1731174267889,0.19714663,76098.0,76097.0,0.065669]
[1731174268094,0.0323,76099.0,76097.0,0.065669]
[1731174268298,0.19666159,76098.0,76097.0,0.065669]
[1731174269798,0.55746159,76098.0,76097.0,0.065669]
[1731174271398,0.06567,76096.0,76088.0,0.0393086]
[1731174271596,0.06567,76096.0,76084.0,0.1041086]
[1731174271812,0.19715278,76095.0,76084.0,0.1041086]
[1731174272094,0.065675,76090.0,76089.0,0.065676]
[1731174272496,0.26379232,76090.0,76089.0,0.065676]
[1731174273386,0.36939232,76090.0,76086.0,0.065678]
[1731174273792,0.30371732,76090.0,76086.0,0.065678]
[1731174274096,0.065676,76089.0,76086.0,0.065678]
[1731174274590,0.19841202,76088.0,76086.0,0.065678]
[1731174276601,0.26408902,76088.0,76087.0,0.065678]
[1731174277002,0.065677,76088.0,76087.0,0.065678]
[1731174277193,0.26330543,76088.0,76087.0,0.065678]
[1731174279591,0.31335612,76088.0,76087.0,0.065678]
[1731174281110,0.31335612,76088.0,76077.0,0.0315]
[1731174281111,0.24767912,76088.0,76082.0,0.065681]
[1731174281307,0.065681,76083.0,76082.0,0.065681]
[1731174281503,0.426481,76083.0,76082.0,0.065681]
[1731174281697,0.73740489,76083.0,76082.0,0.065681]
[1731174283200,0.6229659,76083.0,76082.0,0.065681]
[1731174283406,0.73740489,76083.0,76082.0,0.065681]
[1731174283802,0.065683,76081.0,76078.0,0.065685]
[1731174284109,0.065683,76081.0,76080.0,0.065684]
[1731174284503,0.26206252,76081.0,76080.0,0.065684]
[1731174285996,0.36754252,76081.0,76080.0,0.065684]
[1731174287105,0.30185952,76081.0,76080.0,0.065684]
[1731174292817,0.36754252,76081.0,76080.0,0.065684]
[1731174296512,0.30185952,76081.0,76080.0,0.426484]
[1731174296714,0.30185952,76081.0,76080.0,0.4657926]
[1731174297108,0.30185952,76081.0,76080.0,0.065684]
[1731174301216,0.32213233,76081.0,76080.0,0.065684]
[1731174301812,0.32225139,76081.0,76080.0,0.065684]
[1731174302215,0.38793439,76081.0,76080.0,0.065684]
[1731174302415,0.38793439,76081.0,76071.0,0.07349218]
[1731174302416,0.32225139,76081.0,76071.0,0.07349218]
[1731174302623,0.13917718,76078.0,76069.0,0.0725086]
[1731174302915,0.19624128,76077.0,76076.0,0.065687]
[1731174303112,0.55704128,76077.0,76076.0,0.065687]
[1731174304317,0.065691,76073.0,76072.0,0.06569]
[1731174304514,0.55704128,76077.0,76067.0,0.0701086]
[1731174304515,0.07349218,76070.0,76067.0,0.0701086]
[1731174304821,0.07349218,76070.0,76069.0,0.065693]
[1731174305209,0.27181227,76070.0,76069.0,0.065693]
[1731174305409,0.29251511,76070.0,76069.0,0.065693]
[1731174305618,0.27181227,76070.0,76069.0,0.065693]
[1731174305820,0.065696,76066.0,76065.0,0.065696]
[1731174306111,0.065696,76066.0,76061.0,0.06767059]
[1731174306112,0.065698,76064.0,76061.0,0.06767059]
[1731174306311,0.07349218,76062.0,76061.0,0.065699]
[1731174306709,0.27172455,76062.0,76061.0,0.065699]
[1731174307715,0.35828908,76062.0,76061.0,0.065699]
[1731174308220,0.35828908,76062.0,76056.0,0.4001086]
[1731174308421,0.02086553,76061.0,76060.0,0.05240956]
[1731174308718,0.065701,76060.0,76059.0,0.11811156]
[1731174308923,0.08657391,76060.0,76059.0,0.065702]
[1731174309121,0.21771362,76060.0,76059.0,0.11811156]
[1731174309320,0.02087291,76060.0,76059.0,0.13919418]
[1731174309522,0.3608,76070.0,76059.0,0.22384614]
[1731174309716,0.40967811,76070.0,76069.0,0.17858974]
[1731174309923,0.40967811,76070.0,76069.0,0.13918518]
[1731174310225,0.55781019,76070.0,76069.0,0.13918518]
[1731174310422,0.55781019,76070.0,76069.0,0.1917246]
[1731174310623,0.3608,76070.0,76069.0,0.13918518]
[1731174310922,0.10552,76075.0,76069.0,0.13918518]
[1731174310923,0.10552,76075.0,76074.0,0.065689]
[1731174311128,0.04919679,76085.0,76074.0,0.07349218]
[1731174311316,0.01984359,76084.0,76083.0,0.03942382]
[1731174311621,0.21771419,76084.0,76080.0,0.1182481]
[1731174311824,0.01984359,76083.0,76080.0,0.0525651]
[1731174312029,0.1978706,76084.0,76083.0,0.065681]
[1731174312233,0.3608,76086.0,76083.0,0.065681]
[1731174312234,0.41098272,76086.0,76083.0,0.065681]
[1731174312424,0.41098272,76086.0,76085.0,0.03942028]
[1731174312819,0.60726803,76086.0,76084.0,0.03942028]
[1731174313622,0.60726803,76086.0,76085.0,0.03942028]
[1731174314025,0.62725159,76086.0,76084.0,0.03942028]
[1731174314225,0.60726803,76086.0,76083.0,0.10510128]
[1731174314533,0.60726803,76086.0,76084.0,0.03942028]
[1731174315335,0.60726803,76086.0,76083.0,0.065681]
[1731174315336,0.25425997,76085.0,76083.0,0.065681]
[1731174315527,0.07411382,76084.0,76083.0,0.065681]
[1731174315726,0.27041048,76084.0,76083.0,0.065681]
[1731174317136,0.27041048,76084.0,76070.0,0.097592]
[1731174317137,0.065686,76078.0,76070.0,0.097592]
[1731174317438,0.065686,76078.0,76070.0,0.065692]
[1731174317439,0.11446715,76071.0,76070.0,0.065692]
[1731174317625,0.03412654,76071.0,76070.0,0.065692]
[1731174317824,0.23023167,76071.0,76070.0,0.065692]
[1731174319337,0.3608,76079.0,76078.0,0.065685]
[1731174319643,0.03424964,76079.0,76078.0,0.065685]
[1731174320032,0.05353318,76079.0,76078.0,0.065685]
[1731174320536,0.10536,76085.0,76084.0,0.06568]
[1731174320738,0.1589608,76085.0,76084.0,0.06568]
[1731174320937,0.35603279,76085.0,76084.0,0.06568]
[1731174321936,0.3559561,76085.0,76084.0,0.06568]
[1731174323240,0.2505961,76085.0,76084.0,0.06568]
[1731174323545,0.21635379,76085.0,76084.0,0.06568]
[1731174327336,0.19707199,76085.0,76084.0,0.06568]
[1731174327638,0.1979741,76086.0,76080.0,0.03942028]
[1731174328045,0.3608,76087.0,76080.0,0.03942028]
[1731174328345,0.3608,76087.0,76086.0,0.065678]
[1731174328547,0.10536,76088.0,76086.0,0.065678]
[1731174328750,0.5580294,76087.0,76086.0,0.065678]
[1731174330346,0.57654234,76087.0,76086.0,0.065678]
[1731174330957,0.69100949,76087.0,76086.0,0.065678]
[1731174332666,0.80547664,76087.0,76076.0,0.03942028]
[1731174332864,0.18015215,76078.0,76075.0,0.065688]
[1731174333056,0.0306,76077.0,76075.0,0.065688]
[1731174333251,0.22763965,76077.0,76075.0,0.065688]
[1731174333453,0.07351816,76076.0,76075.0,0.065688]
[1731174333668,0.07351816,76076.0,76070.0,0.03942028]
[1731174333669,0.07351816,76076.0,76067.0,0.03942028]
[1731174333955,0.3608,76072.0,76071.0,0.065691]
[1731174334152,0.4527673,76072.0,76071.0,0.065691]
[1731174334354,0.64981024,76072.0,76061.0,0.03942028]
[1731174334562,0.07351816,76064.0,76062.0,0.065699]
[1731174334756,0.07351816,76065.0,76059.0,0.03942028]
[1731174334956,0.07351816,76065.0,76056.0,0.0302]
[1731174334957,0.171055,76067.0,76063.0,0.065698]
[1731174335158,0.19633844,76064.0,76063.0,0.065698]
[1731174335457,0.11454531,76064.0,76063.0,0.065698]
[1731174335662,0.13322056,76064.0,76063.0,0.065698]
[1731174335863,0.329559,76064.0,76063.0,0.065698]
[1731174336365,0.31088375,76064.0,76063.0,0.065698]
[1731174338668,0.19633844,76064.0,76063.0,0.065698]
[1731174351974,0.19633844,76064.0,76063.0,0.10511828]
[1731174352167,0.19633844,76064.0,76063.0,0.065698]
[1731174355467,0.19633844,76064.0,76063.0,0.10511828]
[1731174356893,0.19633844,76064.0,76063.0,0.065698]
[1731174357275,0.26987164,76064.0,76063.0,0.065698]
[1731174358374,0.30077164,76064.0,76063.0,0.065698]
[1731174365081,0.22723844,76064.0,76063.0,0.065698]
[1731174367083,0.29293544,76064.0,76063.0,0.065698]
[1731174367781,0.31195194,76064.0,76063.0,0.065698]
[1731174368082,0.29293544,76064.0,76063.0,0.065698]
[1731174368869,0.22723844,76064.0,76056.0,0.3608]
[1731174369090,0.0735332,76057.0,76049.0,0.0303]
[1731174369278,0.0735332,76057.0,76056.0,0.065704]
[1731174369581,0.27155465,76057.0,76056.0,0.065704]
[1731174370380,0.33725865,76057.0,76056.0,0.065704]
[1731174371175,0.27155465,76057.0,76056.0,0.065704]
[1731174376295,0.32026203,76057.0,76056.0,0.065704]
[1731174378386,0.33940959,76057.0,76056.0,0.065704]
[1731174379490,0.26587639,76057.0,76056.0,0.065704]
[1731174379694,0.24672883,76057.0,76056.0,0.065704]
[1731174380495,0.24672883,76057.0,76056.0,0.21574915]
[1731174380796,0.24672883,76057.0,76056.0,0.065704]
[1731174381094,0.24672883,76057.0,76056.0,0.11824143]
[1731174381293,0.24672883,76057.0,76056.0,0.065704]
[1731174382988,0.32026203,76057.0,76056.0,0.065704]
[1731174383490,0.38596603,76057.0,76056.0,0.065704]
[1731174383898,0.38596603,76057.0,76056.0,0.10509112]
[1731174384390,0.38596603,76057.0,76056.0,0.065704]
[1731174385289,0.38596603,76057.0,76056.0,0.10509032]
[1731174385493,0.38596603,76057.0,76056.0,0.065704]
[1731174386307,0.38596603,76057.0,76056.0,0.11823106]
[1731174388300,0.38596603,76057.0,76056.0,0.065704]
[1731174390403,0.065705,76055.0,76054.0,0.05252706]
[1731174390804,0.26399513,76055.0,76054.0,0.05252706]
[1731174391202,0.26399513,76055.0,76054.0,0.065706]
[1731174393491,0.19829013,76055.0,76054.0,0.065706]
[1731174393804,0.19708705,76056.0,76053.0,0.00197232]
[1731174394104,0.12224058,76057.0,76053.0,0.00197232]
[1731174394305,0.12224058,76057.0,76056.0,0.065704]
[1731174394604,0.31821023,76057.0,76056.0,0.065704]
[1731174396205,0.33692668,76057.0,76056.0,0.065704]
[1731174397203,0.38391423,76057.0,76056.0,0.065704]
[1731174399306,0.38391423,76057.0,76056.0,0.11827445]
[1731174399896,0.065706,76054.0,76053.0,0.00197232]
[1731174400198,0.26290621,76054.0,76053.0,0.00197232]
[1731174400597,0.26290621,76054.0,76053.0,0.06767932]
[1731174400906,0.19720021,76054.0,76053.0,0.06767932]
[1731174401301,0.19846564,76056.0,76053.0,0.06767932]
[1731174401506,0.12224058,76057.0,76053.0,0.06767932]
[1731174401702,0.01959605,76056.0,76055.0,0.05257487]
[1731174402007,0.19846564,76056.0,76055.0,0.05257487]
[1731174403612,0.30330564,76056.0,76055.0,0.05257487]
[1731174406411,0.30330564,76056.0,76055.0,0.11827987]
[1731174406912,0.36900964,76056.0,76055.0,0.11827987]
[1731174407307,0.36900964,76056.0,76055.0,0.065705]
[1731174407813,0.40310037,76056.0,76055.0,0.065705]
[1731174408111,0.42241469,76056.0,76055.0,0.065705]
[1731174408412,0.40310037,76056.0,76055.0,0.065705]
[1731174408998,0.36900964,76056.0,76055.0,0.065705]
[1731174410009,0.3882693,76056.0,76055.0,0.065705]
[1731174410713,0.42235706,76056.0,76055.0,0.065705]
[1731174411314,0.35665306,76056.0,76055.0,0.065705]
[1731174411916,0.43018626,76056.0,76055.0,0.065705]
[1731174412110,0.32534626,76056.0,76055.0,0.065705]
[1731174412301,0.43018626,76056.0,76055.0,0.065705]
[1731174412813,0.32534626,76056.0,76055.0,0.065705]
[1731174413014,0.2177253,76056.0,76055.0,0.065705]
[1731174414109,0.19846564,76056.0,76055.0,0.065705]
[1731174414512,0.19846564,76056.0,76055.0,0.21640452]
[1731174415816,0.19846564,76056.0,76055.0,0.065705]
[1731174416013,0.19846564,76056.0,76055.0,0.21640142]
[1731174416215,0.096598,76064.0,76055.0,0.21640142]
[1731174416216,0.065693,76070.0,76055.0,0.065705]
[1731174416516,0.10484,76069.0,76066.0,0.065696]
[1731174416715,0.0735332,76074.0,76066.0,0.065696]
[1731174416931,0.10484,76074.0,76066.0,0.065696]
[1731174417219,0.0319,76079.0,76078.0,0.065685]
[1731174417606,0.2291512,76079.0,76078.0,0.11825256]
[1731174417806,0.2291512,76079.0,76078.0,0.10504233]
[1731174418013,0.27933826,76079.0,76078.0,0.10504233]
[1731174418215,0.24743826,76079.0,76078.0,0.065685]
[1731174420714,0.46708,76082.0,76081.0,0.065683]
[1731174420916,0.46564,76082.0,76081.0,0.065683]
[1731174421319,0.0735332,76090.0,76080.0,0.0735332]
[1731174421520,0.00197232,76091.0,76087.0,0.065678]
[1731174421521,0.0508144,76089.0,76087.0,0.065678]
[1731174421816,0.19704849,76088.0,76087.0,0.065678]
[1731174422211,0.19704849,76089.0,76088.0,0.065677]
[1731174422413,0.12470661,76091.0,76084.0,0.0735332]
[1731174422716,0.00197232,76091.0,76090.0,0.065675]
[1731174423122,0.19807471,76091.0,76090.0,0.065675]
[1731174425416,0.27160791,76091.0,76090.0,0.065675]
[1731174427422,0.63240791,76091.0,76081.0,0.0314]
[1731174427621,0.0735332,76082.0,76081.0,0.065683]
[1731174428025,0.27011241,76082.0,76081.0,0.065683]
[1731174428226,0.27011241,76082.0,76073.0,0.0735332]
[1731174428421,0.0735332,76077.0,76076.0,0.065687]
[1731174428923,0.26992916,76077.0,76076.0,0.065687]
[1731174429122,0.19639596,76077.0,76076.0,0.065687]
[1731174429626,0.19617658,76079.0,76077.0,0.065686]
[1731174429815,0.09288336,76078.0,76077.0,0.065686]
[1731174430017,0.0735332,76078.0,76077.0,0.065686]
[1731174430328,0.19617658,76078.0,76077.0,0.1392192]
[1731174430619,0.065668,76099.0,76077.0,0.1392192]
[1731174430826,0.1048,76086.0,76085.0,0.0735332]
[1731174431022,0.1048,76086.0,76085.0,0.1392122]
[1731174431619,0.1048,76086.0,76085.0,0.065679]
[1731174432611,0.04923565,76091.0,76081.0,0.0735332]
[1731174432822,0.0735332,76092.0,76081.0,0.0735332]
[1731174433128,0.0735332,76092.0,76091.0,0.065674]
[1731174433425,0.0735332,76092.0,76081.0,0.065683]
[1731174433426,0.19718725,76092.0,76081.0,0.065683]
[1731174433613,0.19718725,76092.0,76091.0,0.065673]
[1731174434229,0.19718725,76092.0,76080.0,0.3608]
[1731174434418,0.065676,76090.0,76088.0,0.065676]
[1731174434623,0.31163123,76092.0,76088.0,0.065676]
[1731174434928,0.19780143,76089.0,76088.0,0.065676]
[1731174435129,0.065676,76089.0,76088.0,0.065676]
[1731174435529,0.26290767,76089.0,76088.0,0.065676]
[1731174435724,0.065677,76088.0,76084.0,0.06568]
[1731174435926,0.11444398,76085.0,76084.0,0.06568]
[1731174436229,0.31167565,76085.0,76084.0,0.06568]
[1731174436617,0.22723167,76085.0,76084.0,0.06568]
[1731174441030,0.1046,76090.0,76089.0,0.065676]
[1731174441429,0.32196333,76090.0,76089.0,0.065676]
[1731174441632,0.30142307,76090.0,76089.0,0.065676]
[1731174442026,0.35728561,76090.0,76089.0,0.065676]
[1731174442231,0.33673403,76090.0,76089.0,0.065676]
[1731174442427,0.32207808,76090.0,76089.0,0.065676]
[1731174442625,0.35743907,76090.0,76089.0,0.065676]
[1731174442827,0.065676,76089.0,76084.0,0.06568]
[1731174443230,0.19672867,76088.0,76085.0,0.065679]
[1731174443534,0.19672867,76088.0,76087.0,0.065678]
[1731174444031,0.25285315,76088.0,76087.0,0.065678]
[1731174444230,0.05620391,76088.0,76087.0,0.065678]
[1731174444436,0.065677,76088.0,76087.0,0.065678]
[1731174444639,0.26207091,76088.0,76087.0,0.065678]
[1731174446440,0.19639391,76088.0,76087.0,0.065678]
[1731174446831,0.19761379,76089.0,76088.0,0.065677]
[1731174447042,0.1046,76090.0,76083.0,0.03935733]
[1731174447239,0.1046,76090.0,76089.0,0.065676]
[1731174447746,0.30142071,76090.0,76089.0,0.065676]
[1731174448253,0.3221936,76090.0,76089.0,0.065676]
[1731174451947,0.2175936,76090.0,76089.0,0.065676]
[1731174456751,0.02077289,76090.0,76089.0,0.065676]
[1731174457355,0.02077289,76090.0,76089.0,0.13915177]
[1731174458157,0.3608,76093.0,76092.0,0.065673]
[1731174458351,0.02094562,76093.0,76092.0,0.065673]
[1731174458753,0.1046,76102.0,76101.0,0.065666]
[1731174458955,0.02073787,76102.0,76101.0,0.065666]
[1731174459159,0.21793038,76102.0,76101.0,0.065666]
[1731174459565,0.23333968,76102.0,76101.0,0.065666]
[1731174459756,0.21778557,76102.0,76101.0,0.065666]
[1731174459954,0.25401513,76102.0,76101.0,0.065666]
[1731174460263,0.29606385,76102.0,76101.0,0.065666]
[1731174460455,0.03622956,76102.0,76101.0,0.065666]